[Event "January 9 Late 2024"]
[Site "https://www.chess.com"]
[Date "2024.01.09"]
[Round "4"]
[White "Semenenko, Dmytry"]
[Black "Onufrienko, Vladislav"]
[Result "0-1"]
[Board "141"]
[TimeControl "180+1"]
[WhiteFideId "14118645"]
[BlackFideId "13804332"]
[WhiteElo "2370"]
[BlackElo "2608"]
[WhiteTeam "UKR"]
[BlackTeam "KGZ"]
[WhiteClock "0:00:12"]
[BlackClock "0:01:47"]

1. Nf3 {[%clk 0:03:00]}  d5 {[%clk 0:02:59]} 2. c4 {[%clk 0:03:00]}  c6 {[%clk 0:03:00]} 3. e3 {[%clk 0:03:00]}  e6 {[%clk 0:03:00]} 4. Nc3 {[%clk 0:03:00]}  f5 {[%clk 0:03:01]} 5. d4 {[%clk 0:03:00]}  Nf6 {[%clk 0:03:00]} 6. Ne5 {[%clk 0:03:00]}  Bd6 {[%clk 0:03:01]} 7. f4 {[%clk 0:03:00]}  O-O {[%clk 0:03:02]} 8. Be2 {[%clk 0:02:58]}  b6 {[%clk 0:03:02]} 9. O-O {[%clk 0:02:57]}  Bb7 {[%clk 0:03:03]} 10. Qb3 {[%clk 0:02:53]}  Nbd7 {[%clk 0:03:02]} 11. Bd2 {[%clk 0:02:49]}  Qe7 {[%clk 0:03:02]} 12. Rae1 {[%clk 0:02:44]}  Kh8 {[%clk 0:03:02]} 13. Bd3 {[%clk 0:02:36]}  Ne4 {[%clk 0:03:00]} 14. Nxe4 {[%clk 0:02:32]}  dxe4 {[%clk 0:03:00]} 15. Bb1 {[%clk 0:02:24]}  c5 {[%clk 0:03:00]} 16. Qd1 {[%clk 0:02:13]}  cxd4 {[%clk 0:02:59]} 17. exd4 {[%clk 0:02:13]}  Nf6 {[%clk 0:02:55]} 18. a3 {[%clk 0:01:55]}  Rad8 {[%clk 0:02:55]} 19. b4 {[%clk 0:01:50]}  Bxe5 {[%clk 0:02:41]} 20. fxe5 {[%clk 0:01:40]}  Ng4 {[%clk 0:02:41]} 21. Bf4 {[%clk 0:01:16]}  g5 {[%clk 0:02:25]} 22. h3 {[%clk 0:01:10]}  gxf4 {[%clk 0:02:23]} 23. hxg4 {[%clk 0:01:10]}  f3 {[%clk 0:02:16]} 24. gxf5 {[%clk 0:01:01]}  exf5 {[%clk 0:02:14]} 25. Qd2 {[%clk 0:00:40]}  Rg8 {[%clk 0:02:12]} 26. Rf2 {[%clk 0:00:35]}  Qh4 {[%clk 0:02:02]} 27. d5 {[%clk 0:00:27]}  fxg2 {[%clk 0:01:55]} 28. Rxg2 {[%clk 0:00:24]}  Rxg2+ {[%clk 0:01:55]} 29. Kxg2 {[%clk 0:00:15]}  Rg8+ {[%clk 0:01:54]} 30. Kf1 {[%clk 0:00:12]}  Qh1+ {[%clk 0:01:48]} 31. Ke2 {[%clk 0:00:12]}  Qf3# {[%clk 0:01:47]} 0-1

[Event "January 9 Late 2024"]
[Site "https://www.chess.com"]
[Date "2024.01.09"]
[Round "4"]
[White "Golubev, Mikhail"]
[Black "Rosenberg, Evan S"]
[Result "1-0"]
[Board "144"]
[TimeControl "180+1"]
[WhiteFideId "14100983"]
[BlackFideId "2019299"]
[WhiteElo "2588"]
[BlackElo "2352"]
[WhiteTeam "UKR"]
[BlackTeam "USA"]
[WhiteClock "0:00:24"]
[BlackClock "0:00:33"]

1. Nf3 {[%clk 0:01:23]}  d5 {[%clk 0:02:59]} 2. g3 {[%clk 0:01:22]}  Nd7 {[%clk 0:02:59]} 3. Bg2 {[%clk 0:01:22]}  e5 {[%clk 0:02:59]} 4. O-O {[%clk 0:01:22]}  e4 {[%clk 0:02:58]} 5. Nd4 {[%clk 0:01:22]}  h5 {[%clk 0:02:55]} 6. h4 {[%clk 0:01:19]}  g5 {[%clk 0:02:54]} 7. d3 {[%clk 0:01:06]}  gxh4 {[%clk 0:02:52]} 8. dxe4 {[%clk 0:01:07]}  hxg3 {[%clk 0:02:51]} 9. fxg3 {[%clk 0:01:07]}  dxe4 {[%clk 0:02:41]} 10. Nc3 {[%clk 0:01:07]}  Ngf6 {[%clk 0:02:35]} 11. Bg5 {[%clk 0:01:04]}  Be7 {[%clk 0:02:35]} 12. Nf5 {[%clk 0:01:03]}  Bc5+ {[%clk 0:02:35]} 13. e3 {[%clk 0:01:00]}  Rg8 {[%clk 0:02:28]} 14. Bh4 {[%clk 0:01:00]}  Rg6 {[%clk 0:01:40]} 15. Nxe4 {[%clk 0:00:56]}  Bb6 {[%clk 0:01:15]} 16. Qf3 {[%clk 0:00:56]}  Ne5 {[%clk 0:01:09]} 17. Qf4 {[%clk 0:00:55]}  Neg4 {[%clk 0:01:08]} 18. Rad1 {[%clk 0:00:51]}  Bd7 {[%clk 0:01:07]} 19. Nxf6+ {[%clk 0:00:41]}  Rxf6 {[%clk 0:01:02]} 20. Bxf6 {[%clk 0:00:35]}  Qxf6 {[%clk 0:01:01]} 21. Qe4+ {[%clk 0:00:31]}  Kd8 {[%clk 0:00:45]} 22. Qxb7 {[%clk 0:00:26]}  Rc8 {[%clk 0:00:44]} 23. Rxd7+ {[%clk 0:00:25]}  Kxd7 {[%clk 0:00:33]} 24. Rd1+ {[%clk 0:00:24]} 1-0

[Event "January 9 Late 2024"]
[Site "https://www.chess.com"]
[Date "2024.01.09"]
[Round "4"]
[White "Ozdemir, Serhan Berat"]
[Black "Doluhanova, Evgeniya"]
[Result "1-0"]
[Board "145"]
[TimeControl "180+1"]
[WhiteFideId "6374611"]
[BlackFideId "14112035"]
[WhiteElo "2584"]
[BlackElo "2350"]
[WhiteTeam "TUR"]
[BlackTeam "UKR"]
[WhiteClock "0:01:26"]
[BlackClock "0:01:29"]

1. e4 {[%clk 0:02:46]}  c5 {[%clk 0:02:59]} 2. Nf3 {[%clk 0:02:39]}  d6 {[%clk 0:03:00]} 3. d4 {[%clk 0:02:38]}  cxd4 {[%clk 0:03:00]} 4. Nxd4 {[%clk 0:02:39]}  Nf6 {[%clk 0:03:00]} 5. Nc3 {[%clk 0:02:39]}  a6 {[%clk 0:03:01]} 6. Bg5 {[%clk 0:02:39]}  e6 {[%clk 0:03:01]} 7. f4 {[%clk 0:02:38]}  Nbd7 {[%clk 0:03:01]} 8. Qe2 {[%clk 0:02:37]}  b5 {[%clk 0:03:01]} 9. e5 {[%clk 0:02:07]}  dxe5 {[%clk 0:03:00]} 10. fxe5 {[%clk 0:02:08]}  h6 {[%clk 0:03:00]} 11. Bh4 {[%clk 0:02:09]}  Qb6 {[%clk 0:02:38]} 12. O-O-O {[%clk 0:01:58]}  b4 {[%clk 0:02:07]} 13. Na4 {[%clk 0:01:39]}  Qa5 {[%clk 0:02:07]} 14. exf6 {[%clk 0:01:39]}  Nxf6 {[%clk 0:01:29]} 15. Nc6 {[%clk 0:01:26]} 1-0

[Event "January 9 Late 2024"]
[Site "https://www.chess.com"]
[Date "2024.01.09"]
[Round "4"]
[White "Melamed, Daniel"]
[Black "Ferreira, Vitor Hugo Vieira"]
[Result "0-1"]
[Board "151"]
[TimeControl "180+1"]
[WhiteFideId "3229076"]
[BlackFideId "2119765"]
[WhiteElo "2338"]
[BlackElo "2541"]
[WhiteTeam "AUS"]
[BlackTeam "BRA"]
[WhiteClock "0:00:22"]
[BlackClock "0:00:07"]

1. d4 {[%clk 0:03:00]}  d5 {[%clk 0:02:06]} 2. Nf3 {[%clk 0:03:00]}  Nf6 {[%clk 0:02:06]} 3. Bf4 {[%clk 0:02:59]}  c5 {[%clk 0:02:03]} 4. e3 {[%clk 0:03:00]}  Nc6 {[%clk 0:02:02]} 5. c3 {[%clk 0:03:00]}  Qb6 {[%clk 0:02:02]} 6. Qc2 {[%clk 0:03:00]}  Bf5 {[%clk 0:02:01]} 7. dxc5 {[%clk 0:02:59]}  Bxc2 {[%clk 0:01:56]} 8. cxb6 {[%clk 0:02:57]}  axb6 {[%clk 0:01:55]} 9. Na3 {[%clk 0:02:57]}  e5 {[%clk 0:01:55]} 10. Nxc2 {[%clk 0:02:56]}  exf4 {[%clk 0:01:54]} 11. exf4 {[%clk 0:02:57]}  Bc5 {[%clk 0:01:53]} 12. Bb5 {[%clk 0:02:53]}  O-O {[%clk 0:01:44]} 13. O-O {[%clk 0:02:53]}  Ne4 {[%clk 0:01:41]} 14. Nfd4 {[%clk 0:02:43]}  Rac8 {[%clk 0:01:37]} 15. Bd3 {[%clk 0:02:32]}  Nf6 {[%clk 0:01:26]} 16. Rfe1 {[%clk 0:02:30]}  Rfd8 {[%clk 0:01:25]} 17. Rad1 {[%clk 0:02:27]}  g6 {[%clk 0:01:24]} 18. f5 {[%clk 0:02:23]}  g5 {[%clk 0:01:18]} 19. h3 {[%clk 0:02:12]}  Kg7 {[%clk 0:01:18]} 20. g4 {[%clk 0:02:11]}  h5 {[%clk 0:01:17]} 21. f3 {[%clk 0:02:11]}  Bd6 {[%clk 0:01:16]} 22. Kg2 {[%clk 0:02:08]}  Ne5 {[%clk 0:01:12]} 23. Nb5 {[%clk 0:01:58]}  Bb8 {[%clk 0:01:06]} 24. Ne3 {[%clk 0:01:53]}  Rh8 {[%clk 0:01:02]} 25. Rh1 {[%clk 0:01:48]}  Rh7 {[%clk 0:00:59]} 26. Be2 {[%clk 0:01:44]}  Ned7 {[%clk 0:00:22]} 27. Nxd5 {[%clk 0:01:40]}  Nxd5 {[%clk 0:00:22]} 28. Rxd5 {[%clk 0:01:41]}  Nf6 {[%clk 0:00:23]} 29. Rd2 {[%clk 0:01:35]}  Rch8 {[%clk 0:00:22]} 30. Nd6 {[%clk 0:00:52]}  hxg4 {[%clk 0:00:21]} 31. fxg4 {[%clk 0:00:51]}  Rd8 {[%clk 0:00:15]} 32. Rhd1 {[%clk 0:00:50]}  Rdh8 {[%clk 0:00:10]} 33. Rd3 {[%clk 0:00:47]}  Bxd6 {[%clk 0:00:09]} 34. Rxd6 {[%clk 0:00:48]}  Rxh3 {[%clk 0:00:09]} 35. Kf2 {[%clk 0:00:31]}  Ne4+ {[%clk 0:00:09]} 36. Kg2 {[%clk 0:00:25]}  Rg3+ {[%clk 0:00:08]} 37. Kf1 {[%clk 0:00:22]}  Rh1# {[%clk 0:00:07]} 0-1

[Event "January 9 Late 2024"]
[Site "https://www.chess.com"]
[Date "2024.01.09"]
[Round "4"]
[White "Gasparyan, David"]
[Black "Kekic, Armin"]
[Result "1-0"]
[Board "152"]
[TimeControl "180+1"]
[WhiteFideId "13311980"]
[BlackFideId "14401274"]
[WhiteElo "2538"]
[BlackElo "2338"]
[WhiteTeam "USA"]
[BlackTeam "BIH"]
[WhiteClock "0:00:19"]
[BlackClock "0:00:23"]

1. d4 {[%clk 0:02:58]}  d6 {[%clk 0:02:59]} 2. e4 {[%clk 0:02:56]}  e5 {[%clk 0:02:58]} 3. Nc3 {[%clk 0:02:51]}  Nc6 {[%clk 0:02:58]} 4. dxe5 {[%clk 0:02:44]}  dxe5 {[%clk 0:02:55]} 5. Be3 {[%clk 0:02:40]}  Be6 {[%clk 0:02:50]} 6. a3 {[%clk 0:02:35]}  a6 {[%clk 0:02:47]} 7. Nge2 {[%clk 0:02:23]}  Nf6 {[%clk 0:02:45]} 8. f3 {[%clk 0:02:22]}  Nd7 {[%clk 0:02:44]} 9. Ng3 {[%clk 0:02:18]}  Bc5 {[%clk 0:02:42]} 10. Qc1 {[%clk 0:02:16]}  Qe7 {[%clk 0:02:37]} 11. b4 {[%clk 0:02:10]}  Bxe3 {[%clk 0:02:33]} 12. Qxe3 {[%clk 0:02:11]}  Nd4 {[%clk 0:02:30]} 13. Bd3 {[%clk 0:02:09]}  c5 {[%clk 0:02:24]} 14. Nf5 {[%clk 0:01:49]}  Qf8 {[%clk 0:02:04]} 15. Nd5 {[%clk 0:01:31]}  Bxd5 {[%clk 0:01:56]} 16. exd5 {[%clk 0:01:29]}  g6 {[%clk 0:01:54]} 17. Nxd4 {[%clk 0:01:18]}  cxd4 {[%clk 0:01:55]} 18. Qe2 {[%clk 0:01:17]}  Qd6 {[%clk 0:01:54]} 19. f4 {[%clk 0:01:10]}  O-O {[%clk 0:01:39]} 20. O-O {[%clk 0:01:03]}  Rac8 {[%clk 0:01:33]} 21. fxe5 {[%clk 0:00:59]}  Qxe5 {[%clk 0:01:22]} 22. Qg4 {[%clk 0:00:56]}  Nf6 {[%clk 0:01:11]} 23. Qh4 {[%clk 0:00:52]}  Nxd5 {[%clk 0:01:09]} 24. Rae1 {[%clk 0:00:51]}  Ne3 {[%clk 0:01:08]} 25. Rf4 {[%clk 0:00:50]}  Rcd8 {[%clk 0:00:53]} 26. Re4 {[%clk 0:00:49]}  Qc7 {[%clk 0:00:41]} 27. Re7 {[%clk 0:00:44]}  Qc3 {[%clk 0:00:36]} 28. Rxb7 {[%clk 0:00:40]}  Nxc2 {[%clk 0:00:32]} 29. Rd1 {[%clk 0:00:19]}  Ne3 {[%clk 0:00:30]} 30. Rxf7 {[%clk 0:00:19]}  Nxd1 {[%clk 0:00:23]} 31. Qxh7# {[%clk 0:00:19]} 1-0

[Event "January 9 Late 2024"]
[Site "https://www.chess.com"]
[Date "2024.01.10"]
[Round "4"]
[White "Jazdanovs, Aleksandrs"]
[Black "Aggelis, Nikolaos"]
[Result "1-0"]
[Board "153"]
[TimeControl "180+1"]
[WhiteFideId "11604492"]
[BlackFideId "4213220"]
[WhiteElo "2320"]
[BlackElo "2538"]
[WhiteTeam "LAT"]
[BlackTeam "GRE"]
[WhiteClock "0:00:24"]
[BlackClock "0:00:04"]

1. e4 {[%clk 0:03:00]}  c6 {[%clk 0:02:59]} 2. Nf3 {[%clk 0:02:59]}  d5 {[%clk 0:02:57]} 3. d3 {[%clk 0:02:59]}  dxe4 {[%clk 0:02:55]} 4. dxe4 {[%clk 0:03:00]}  Qxd1+ {[%clk 0:02:55]} 5. Kxd1 {[%clk 0:03:01]}  Bg4 {[%clk 0:02:52]} 6. Nd2 {[%clk 0:02:56]}  f6 {[%clk 0:02:50]} 7. h3 {[%clk 0:02:48]}  Bxf3+ {[%clk 0:02:48]} 8. Nxf3 {[%clk 0:02:48]}  e5 {[%clk 0:02:48]} 9. a4 {[%clk 0:02:45]}  Nd7 {[%clk 0:02:47]} 10. Be3 {[%clk 0:02:43]}  Bc5 {[%clk 0:02:45]} 11. Ke2 {[%clk 0:02:39]}  Bxe3 {[%clk 0:02:40]} 12. Kxe3 {[%clk 0:02:40]}  Ne7 {[%clk 0:02:37]} 13. Bc4 {[%clk 0:02:38]}  O-O-O {[%clk 0:02:24]} 14. a5 {[%clk 0:02:31]}  Kc7 {[%clk 0:02:14]} 15. Rhd1 {[%clk 0:02:30]}  Ng6 {[%clk 0:02:10]} 16. g3 {[%clk 0:02:28]}  h5 {[%clk 0:02:00]} 17. h4 {[%clk 0:02:24]}  Ne7 {[%clk 0:01:58]} 18. b4 {[%clk 0:02:21]}  Nb8 {[%clk 0:01:53]} 19. Nd2 {[%clk 0:02:05]}  Rd4 {[%clk 0:01:49]} 20. c3 {[%clk 0:01:59]}  Rd7 {[%clk 0:01:42]} 21. Nb3 {[%clk 0:01:58]}  Rxd1 {[%clk 0:01:37]} 22. Rxd1 {[%clk 0:01:58]}  b6 {[%clk 0:01:26]} 23. Be6 {[%clk 0:01:29]}  g5 {[%clk 0:01:17]} 24. Rh1 {[%clk 0:01:16]}  Nd7 {[%clk 0:01:10]} 25. Bf7 {[%clk 0:01:05]}  g4 {[%clk 0:01:06]} 26. axb6+ {[%clk 0:00:56]}  axb6 {[%clk 0:01:04]} 27. Ra1 {[%clk 0:00:57]}  Kb7 {[%clk 0:01:01]} 28. Nd2 {[%clk 0:00:56]}  Rh7 {[%clk 0:00:56]} 29. Be6 {[%clk 0:00:56]}  Nf8 {[%clk 0:00:52]} 30. Bf5 {[%clk 0:00:56]}  Rh8 {[%clk 0:00:43]} 31. Nc4 {[%clk 0:00:55]}  Nfg6 {[%clk 0:00:35]} 32. Rd1 {[%clk 0:00:49]}  Nf8 {[%clk 0:00:23]} 33. Nd6+ {[%clk 0:00:45]}  Kc7 {[%clk 0:00:22]} 34. Ne8+ {[%clk 0:00:45]}  Kb7 {[%clk 0:00:19]} 35. Nxf6 {[%clk 0:00:46]}  Nxf5+ {[%clk 0:00:19]} 36. exf5 {[%clk 0:00:47]}  Ka6 {[%clk 0:00:17]} 37. c4 {[%clk 0:00:43]}  c5 {[%clk 0:00:14]} 38. Ra1+ {[%clk 0:00:40]}  Kb7 {[%clk 0:00:14]} 39. bxc5 {[%clk 0:00:40]}  bxc5 {[%clk 0:00:15]} 40. Ke4 {[%clk 0:00:39]}  Kc6 {[%clk 0:00:13]} 41. Ra6+ {[%clk 0:00:37]}  Kb7 {[%clk 0:00:13]} 42. Ra5 {[%clk 0:00:35]}  Kb6 {[%clk 0:00:12]} 43. Ra8 {[%clk 0:00:36]}  Kc6 {[%clk 0:00:13]} 44. Nh7 {[%clk 0:00:25]}  Rxh7 {[%clk 0:00:12]} 45. Rxf8 {[%clk 0:00:25]}  Rd7 {[%clk 0:00:09]} 46. f6 {[%clk 0:00:23]}  Rd4+ {[%clk 0:00:09]} 47. Kxe5 {[%clk 0:00:23]}  Rxc4 {[%clk 0:00:08]} 48. f7 {[%clk 0:00:24]}  Kd7 {[%clk 0:00:07]} 49. Rd8+ {[%clk 0:00:23]}  Kxd8 {[%clk 0:00:05]} 50. f8=Q+ {[%clk 0:00:24]}  Kd7 {[%clk 0:00:04]} 51. Qf7+ {[%clk 0:00:24]} 1-0

[Event "January 9 Late 2024"]
[Site "https://www.chess.com"]
[Date "2024.01.09"]
[Round "4"]
[White "Smiech, Sara"]
[Black "Antonio, Jorge Carlos"]
[Result "1-0"]
[Board "154"]
[TimeControl "180+1"]
[WhiteFideId "91102863"]
[BlackFideId "113190"]
[WhiteElo "2536"]
[BlackElo "2317"]
[WhiteTeam "POL"]
[BlackTeam "ARG"]
[WhiteClock "0:02:06"]
[BlackClock "0:01:06"]

1. e4 {[%clk 0:03:00]}  c6 {[%clk 0:02:57]} 2. d4 {[%clk 0:03:00]}  d5 {[%clk 0:02:57]} 3. f3 {[%clk 0:03:01]}  dxe4 {[%clk 0:02:56]} 4. fxe4 {[%clk 0:03:01]}  Nf6 {[%clk 0:02:52]} 5. Nc3 {[%clk 0:02:56]}  Bg4 {[%clk 0:02:50]} 6. Be2 {[%clk 0:02:50]}  Bxe2 {[%clk 0:02:50]} 7. Ngxe2 {[%clk 0:02:50]}  e6 {[%clk 0:02:50]} 8. O-O {[%clk 0:02:49]}  Be7 {[%clk 0:02:50]} 9. Ng3 {[%clk 0:02:43]}  O-O {[%clk 0:02:48]} 10. Bg5 {[%clk 0:02:30]}  h6 {[%clk 0:02:47]} 11. Bxf6 {[%clk 0:02:30]}  Bxf6 {[%clk 0:02:47]} 12. e5 {[%clk 0:02:30]}  Be7 {[%clk 0:02:43]} 13. Nce4 {[%clk 0:02:30]}  Nd7 {[%clk 0:02:40]} 14. Qg4 {[%clk 0:02:26]}  Kh7 {[%clk 0:02:30]} 15. Nh5 {[%clk 0:02:23]}  g6 {[%clk 0:02:25]} 16. Nhf6+ {[%clk 0:02:20]}  Bxf6 {[%clk 0:02:23]} 17. Nxf6+ {[%clk 0:02:20]}  Nxf6 {[%clk 0:02:22]} 18. Rxf6 {[%clk 0:02:21]}  Qd7 {[%clk 0:02:14]} 19. Raf1 {[%clk 0:02:19]}  Kg7 {[%clk 0:02:11]} 20. h4 {[%clk 0:02:14]}  Rad8 {[%clk 0:02:09]} 21. c3 {[%clk 0:02:13]}  c5 {[%clk 0:02:08]} 22. h5 {[%clk 0:02:13]}  g5 {[%clk 0:02:05]} 23. Rxh6 {[%clk 0:02:07]}  Kxh6 {[%clk 0:01:46]} 24. Rf6+ {[%clk 0:02:06]}  Kh7 {[%clk 0:01:06]} 25. Qxg5 {[%clk 0:02:06]} 1-0

[Event "January 9 Late 2024"]
[Site "https://www.chess.com"]
[Date "2024.01.09"]
[Round "4"]
[White "Baltag, Iulian"]
[Black "Diaz, Fernando"]
[Result "1-0"]
[Board "155"]
[TimeControl "180+1"]
[WhiteFideId "13901419"]
[BlackFideId "3701255"]
[WhiteElo "2536"]
[BlackElo "2313"]
[WhiteTeam "MDA"]
[BlackTeam "PAR"]
[WhiteClock "0:00:35"]
[BlackClock "0:00:10"]

1. e4 {[%clk 0:03:00]}  e6 {[%clk 0:02:59]} 2. Qe2 {[%clk 0:02:59]}  d5 {[%clk 0:03:00]} 3. exd5 {[%clk 0:02:59]}  Qxd5 {[%clk 0:03:01]} 4. Nc3 {[%clk 0:02:59]}  Qd8 {[%clk 0:03:02]} 5. Nf3 {[%clk 0:03:00]}  Nc6 {[%clk 0:03:02]} 6. g3 {[%clk 0:03:00]}  Nf6 {[%clk 0:03:01]} 7. Bg2 {[%clk 0:03:00]}  Be7 {[%clk 0:03:01]} 8. O-O {[%clk 0:03:01]}  O-O {[%clk 0:03:02]} 9. Rd1 {[%clk 0:03:01]}  Nd4 {[%clk 0:02:55]} 10. Nxd4 {[%clk 0:03:00]}  Qxd4 {[%clk 0:02:56]} 11. Nb5 {[%clk 0:02:57]}  Qb6 {[%clk 0:02:51]} 12. d4 {[%clk 0:02:55]}  Bd7 {[%clk 0:02:49]} 13. a4 {[%clk 0:02:46]}  a6 {[%clk 0:02:47]} 14. Nc3 {[%clk 0:02:43]}  Bc6 {[%clk 0:02:43]} 15. a5 {[%clk 0:02:42]}  Qa7 {[%clk 0:02:38]} 16. Bf4 {[%clk 0:02:19]}  Bxg2 {[%clk 0:02:31]} 17. Kxg2 {[%clk 0:02:20]}  c6 {[%clk 0:02:32]} 18. Na4 {[%clk 0:02:13]}  Rad8 {[%clk 0:02:27]} 19. c4 {[%clk 0:02:04]}  Bd6 {[%clk 0:01:53]} 20. Be3 {[%clk 0:02:01]}  Qb8 {[%clk 0:01:48]} 21. Nc3 {[%clk 0:01:55]}  Rd7 {[%clk 0:01:40]} 22. Qf3 {[%clk 0:01:52]}  Rfd8 {[%clk 0:01:39]} 23. h3 {[%clk 0:01:44]}  Be7 {[%clk 0:01:30]} 24. g4 {[%clk 0:01:37]}  Ne8 {[%clk 0:01:22]} 25. Ne4 {[%clk 0:01:33]}  Nf6 {[%clk 0:01:18]} 26. Nc3 {[%clk 0:01:31]}  Ne8 {[%clk 0:01:18]} 27. d5 {[%clk 0:01:30]}  cxd5 {[%clk 0:01:17]} 28. cxd5 {[%clk 0:01:31]}  exd5 {[%clk 0:01:18]} 29. Nxd5 {[%clk 0:01:26]}  Bf8 {[%clk 0:01:03]} 30. Bg5 {[%clk 0:01:25]}  f6 {[%clk 0:00:55]} 31. Bf4 {[%clk 0:01:25]}  Bd6 {[%clk 0:00:49]} 32. Nb6 {[%clk 0:01:23]}  Re7 {[%clk 0:00:43]} 33. Qd5+ {[%clk 0:01:19]}  Kh8 {[%clk 0:00:39]} 34. Rac1 {[%clk 0:00:48]}  Bxf4 {[%clk 0:00:27]} 35. Qxd8 {[%clk 0:00:43]}  Qxd8 {[%clk 0:00:27]} 36. Rxd8 {[%clk 0:00:44]}  Bxc1 {[%clk 0:00:28]} 37. Nc8 {[%clk 0:00:43]}  Re1 {[%clk 0:00:18]} 38. Nd6 {[%clk 0:00:41]}  Kg8 {[%clk 0:00:11]} 39. Nxe8 {[%clk 0:00:39]}  Kf7 {[%clk 0:00:11]} 40. Nd6+ {[%clk 0:00:38]}  Ke7 {[%clk 0:00:12]} 41. Re8+ {[%clk 0:00:38]}  Kxd6 {[%clk 0:00:12]} 42. Rxe1 {[%clk 0:00:38]}  Bxb2 {[%clk 0:00:13]} 43. Rb1 {[%clk 0:00:37]}  Bc3 {[%clk 0:00:12]} 44. Rxb7 {[%clk 0:00:37]}  Bxa5 {[%clk 0:00:12]} 45. Ra7 {[%clk 0:00:36]}  h6 {[%clk 0:00:10]} 46. Rxa6+ {[%clk 0:00:35]} 1-0

[Event "January 9 Late 2024"]
[Site "https://www.chess.com"]
[Date "2024.01.10"]
[Round "4"]
[White "Bruedigam, Martin"]
[Black "Graham, Nathaniel"]
[Result "1-0"]
[Board "156"]
[TimeControl "180+1"]
[WhiteFideId "24608033"]
[BlackFideId "2007983"]
[WhiteElo "2536"]
[BlackElo "2312"]
[WhiteTeam "GER"]
[BlackTeam "USA"]
[WhiteClock "0:00:14"]
[BlackClock "0:00:00"]

1. e4 {[%clk 0:02:57]}  c5 {[%clk 0:02:59]} 2. Nf3 {[%clk 0:02:57]}  e6 {[%clk 0:02:59]} 3. d4 {[%clk 0:02:57]}  cxd4 {[%clk 0:03:00]} 4. Nxd4 {[%clk 0:02:57]}  a6 {[%clk 0:02:59]} 5. Nc3 {[%clk 0:02:56]}  Qc7 {[%clk 0:02:58]} 6. Be3 {[%clk 0:02:53]}  Bb4 {[%clk 0:02:57]} 7. Qd3 {[%clk 0:02:39]}  Nf6 {[%clk 0:02:54]} 8. Be2 {[%clk 0:02:37]}  Nxe4 {[%clk 0:02:32]} 9. O-O {[%clk 0:02:21]}  Nxc3 {[%clk 0:02:25]} 10. bxc3 {[%clk 0:02:18]}  Qxc3 {[%clk 0:02:20]} 11. Qe4 {[%clk 0:02:14]}  d5 {[%clk 0:02:07]} 12. Qg4 {[%clk 0:02:12]}  O-O {[%clk 0:02:05]} 13. Bh6 {[%clk 0:02:03]}  g6 {[%clk 0:02:05]} 14. Bxf8 {[%clk 0:01:52]}  Bxf8 {[%clk 0:02:05]} 15. Rab1 {[%clk 0:01:52]}  e5 {[%clk 0:02:01]} 16. Qg5 {[%clk 0:01:48]}  Qxd4 {[%clk 0:01:52]} 17. Rfd1 {[%clk 0:01:45]}  Qf4 {[%clk 0:01:33]} 18. Qxf4 {[%clk 0:01:39]}  exf4 {[%clk 0:01:34]} 19. Bf3 {[%clk 0:01:34]}  Nc6 {[%clk 0:01:24]} 20. Bxd5 {[%clk 0:01:34]}  Nb4 {[%clk 0:01:14]} 21. Bb3 {[%clk 0:01:28]}  Bf5 {[%clk 0:01:09]} 22. Rd4 {[%clk 0:01:21]}  f3 {[%clk 0:00:50]} 23. g4 {[%clk 0:01:13]}  Nxc2 {[%clk 0:00:28]} 24. Rf4 {[%clk 0:00:59]}  Na3 {[%clk 0:00:27]} 25. Bxf7+ {[%clk 0:00:53]}  Kxf7 {[%clk 0:00:21]} 26. Rxb7+ {[%clk 0:00:53]}  Ke6 {[%clk 0:00:20]} 27. gxf5+ {[%clk 0:00:53]}  gxf5 {[%clk 0:00:21]} 28. Rxf3 {[%clk 0:00:50]}  Bd6 {[%clk 0:00:17]} 29. Rxh7 {[%clk 0:00:49]}  Rg8+ {[%clk 0:00:17]} 30. Kf1 {[%clk 0:00:48]}  Nc4 {[%clk 0:00:16]} 31. Ke2 {[%clk 0:00:45]}  Ne5 {[%clk 0:00:13]} 32. Rg3 {[%clk 0:00:42]}  Rb8 {[%clk 0:00:13]} 33. Kf1 {[%clk 0:00:38]}  Rb1+ {[%clk 0:00:12]} 34. Kg2 {[%clk 0:00:38]}  f4 {[%clk 0:00:12]} 35. Rb3 {[%clk 0:00:34]}  f3+ {[%clk 0:00:12]} 36. Kh3 {[%clk 0:00:33]}  Rf1 {[%clk 0:00:10]} 37. Rb6 {[%clk 0:00:31]}  Kd5 {[%clk 0:00:09]} 38. Rh6 {[%clk 0:00:15]}  Bc5 {[%clk 0:00:08]} 39. Rxa6 {[%clk 0:00:14]}  Rxf2 {[%clk 0:00:08]} 40. Rh5 {[%clk 0:00:13]}  Bd4 {[%clk 0:00:07]} 41. Ra5+ {[%clk 0:00:12]}  Ke4 {[%clk 0:00:07]} 42. Ra4 {[%clk 0:00:13]}  Rf1 {[%clk 0:00:07]} 43. Rh4+ {[%clk 0:00:13]}  Ke3 {[%clk 0:00:06]} 44. Raxd4 {[%clk 0:00:13]}  f2 {[%clk 0:00:00]} 45. Rdf4 {[%clk 0:00:14]} 1-0